fUSD/lending_fUSD_20250112
["ID","MTS","AMOUNT","RATE_DAILY","PERIOD"]
[348696961,1736723450621,-500.0,0.00010271,2]
[348696962,1736723450630,-500.0,0.00010271,2]
[348696963,1736723450640,-500.0,0.00010271,2]
[348696964,1736723450649,-1949.57,0.00010271,2]
[348696965,1736723450658,-500.0,0.00010271,2]
[348696966,1736723450668,-762.22,0.00010271,2]
[348696967,1736723450677,-535.71847028,0.00010271,2]
[348696968,1736723450687,-500.0,0.00010271,2]
[348696969,1736723450697,-500.0,0.00010271,2]
[348696970,1736723450706,-257.67071372,0.00010271,2]
[348696971,1736723450716,-500.0,0.00010271,2]
[348696972,1736723450725,-500.0,0.00010271,2]
[348696973,1736723450735,-500.0,0.00010271,2]
[348696974,1736723450744,-500.0,0.00010271,2]
[348696975,1736723450754,-1058.94,0.00010271,2]
[348696976,1736723450764,-500.0,0.00010271,2]
[348696977,1736723450774,-500.0,0.00010271,2]
[348696978,1736723450783,-500.0,0.00010272,2]
[348696979,1736723450794,-500.0,0.00010272,2]
[348696980,1736723450804,-506.90764995,0.00010272,2]
[348696981,1736723450814,-500.0,0.00010272,2]
[348696982,1736723450823,-500.0,0.00010272,2]
[348696983,1736723450833,-552.42,0.00010272,2]
[348696984,1736723450843,-515.11272573,0.00010272,2]
[348696985,1736723450852,-500.0,0.00010272,2]
[348696986,1736723450862,-500.0,0.00010272,2]
[348696987,1736723450871,-500.0,0.00010272,2]
[348696988,1736723450881,-500.0,0.00010272,2]
[348696989,1736723450890,-500.0,0.00010272,2]
[348696990,1736723450899,-500.0,0.00010272,2]
[348696991,1736723450909,-500.0,0.00010272,2]
[348696992,1736723450918,-495.81721314,0.00010272,2]
[348696993,1736723450928,-500.0,0.00010272,2]
[348696994,1736723450937,-500.0,0.00010272,2]
[348696995,1736723450946,-500.0,0.00010272,2]
[348696996,1736723450956,-358.51,0.00010272,2]
[348696997,1736723450966,-500.0,0.00010272,2]
[348696998,1736723450975,-500.0,0.00010272,2]
[348696999,1736723450984,-595.25152967,0.00010272,2]
[348697000,1736723450994,-500.0,0.00010272,2]
[348697001,1736723451003,-500.0,0.00010272,2]
[348697002,1736723451013,-703.96,0.00010272,2]
[348697003,1736723451023,-500.0,0.00010272,2]
[348697004,1736723451032,-307.83475207,0.00010272,2]
[348697005,1736723451042,-500.0,0.00010272,2]
[348697006,1736723451051,-500.0,0.00010272,2]
[348697007,1736723451061,-500.0,0.00010272,2]
[348697008,1736723451070,-500.0,0.00010272,2]
[348697009,1736723451079,-319.94169573,0.00010272,2]
[348697010,1736723451089,-500.0,0.00010272,2]
[348697011,1736723451098,-1378.21,0.00010272,2]
[348697012,1736723451108,-500.0,0.00010272,2]
[348697013,1736723451117,-500.0,0.00010272,2]
[348697014,1736723451126,-500.0,0.00010272,2]
[348697015,1736723451135,-500.0,0.00010272,2]
[348697016,1736723451145,-500.0,0.00010272,2]
[348697017,1736723451154,-156.26,0.00010272,2]
[348697018,1736723451164,-500.0,0.00010272,2]
[348697019,1736723451174,-500.0,0.00010272,2]
[348697020,1736723451183,-877.97,0.00010272,2]
[348697021,1736723451193,-500.0,0.00010272,2]
[348697022,1736723451203,-2136.75,0.00010272,2]
[348697023,1736723451212,-500.0,0.00010272,2]
[348697024,1736723451222,-504.12022236,0.00010272,2]
[348697025,1736723451232,-500.0,0.00010272,2]
[348697026,1736723451241,-500.0,0.00010272,2]
[348697027,1736723451251,-500.0,0.00010272,2]
[348697028,1736723451265,-500.0,0.00010272,2]
[348697029,1736723451274,-500.0,0.00010272,2]
[348697030,1736723451284,-2251.52,0.00010272,2]
[348697031,1736723451294,-500.0,0.00010272,2]
[348697032,1736723451305,-500.0,0.00010272,2]
[348697033,1736723451314,-500.0,0.00010272,2]
[348697034,1736723451324,-500.0,0.00010272,2]
[348697035,1736723451333,-500.0,0.00010272,2]
[348697036,1736723451343,-500.0,0.00010272,2]
[348697037,1736723451352,-500.0,0.00010272,2]
[348697038,1736723451361,-923.65,0.00010272,2]
[348697039,1736723451371,-500.0,0.00010272,2]
[348697040,1736723451380,-500.0,0.00010272,2]
[348697041,1736723451389,-505.28,0.00010272,2]
[348697042,1736723451398,-500.0,0.00010272,2]
[348697043,1736723451407,-1889.32,0.00010272,2]
[348697044,1736723451417,-500.0,0.00010272,2]
[348697045,1736723451426,-500.0,0.00010272,2]
[348697046,1736723451436,-500.0,0.00010272,2]
[348697047,1736723451445,-500.0,0.00010272,2]
[348697048,1736723451455,-500.0,0.00010272,2]
[348697049,1736723451464,-500.0,0.00010272,2]
[348697050,1736723451474,-500.34,0.00010272,2]
[348697051,1736723451483,-500.0,0.00010272,2]
[348697052,1736723451493,-500.0,0.00010272,2]
[348697053,1736723451502,-500.0,0.00010272,2]
[348697054,1736723451514,-500.0,0.00010272,2]
[348697055,1736723451524,-519.67,0.00010272,2]
[348697056,1736723451533,-500.0,0.00010272,2]
[348697057,1736723451543,-500.0,0.00010272,2]
[348697058,1736723451553,-500.0,0.00010272,2]
[348697059,1736723451563,-592.28,0.00010272,2]
[348697060,1736723451572,-500.0,0.00010272,2]
[348697061,1736723451581,-250.38758051,0.00010272,2]
[348697062,1736723451592,-500.0,0.00010272,2]
[348697063,1736723451602,-898.78,0.00010272,2]
[348697064,1736723451827,-500.0,0.00010272,2]
[348697065,1736723451837,-500.0,0.00010272,2]
[348697066,1736723451847,-766.07,0.00010272,2]
[348697067,1736723451856,-500.0,0.00010272,2]
[348697068,1736723451866,-561.49,0.00010272,2]
[348697069,1736723451875,-2194.42,0.00010272,2]
[348697070,1736723451885,-901.07,0.00010272,2]
[348697071,1736723451894,-952.21,0.00010272,2]
[348697072,1736723451903,-1139.11,0.00010272,2]
[348697073,1736723451913,-1451.1,0.00010272,2]
[348697074,1736723451922,-896.25,0.00010272,2]
[348697075,1736723451932,-1582.85,0.00010272,2]
[348697076,1736723451941,-500.0,0.00010273,2]
[348697077,1736723451950,-875.87,0.00010273,2]
[348697078,1736723451959,-681.14,0.00010273,2]
[348697079,1736723451969,-946.98,0.00010273,2]
[348697080,1736723451979,-775.55,0.00010273,2]
[348697081,1736723451989,-500.0,0.00010273,2]
[348697082,1736723451998,-854.16,0.00010273,2]
[348697083,1736723452007,-1050.58,0.00010273,2]
[348697084,1736723452019,-500.0,0.00010273,2]
[348697085,1736723452029,-745.7,0.00010273,2]
[348697086,1736723452039,-368.66217887,0.00010283,2]
[348697087,1736723452048,-200.0,0.00010303,2]
[348697088,1736723452057,-718.48,0.00010418,2]
[348697089,1736723452067,-3000.0,0.0001043,2]
[348697090,1736723452076,-499.91242727,0.00010521,2]
[348697091,1736723452086,-393.58289821,0.00010522,2]
[348697092,1736723452097,-500.0,0.00010543,2]
[348697093,1736723452107,-1301.35,0.00010543,2]
[348697094,1736723452116,-1287.05,0.00010543,2]
[348697095,1736723452126,-956.33,0.00010543,2]
[348697096,1736723452135,-500.0,0.00010543,2]
[348697097,1736723452144,-565.65,0.00010543,2]
[348697098,1736723452155,-1471.68,0.00010543,2]
[348697099,1736723452165,-500.0,0.00010543,2]
[348697100,1736723452174,-541.32,0.00010543,2]
[348697101,1736723452183,-500.0,0.00010543,2]
[348697102,1736723452192,-597.96,0.00010543,2]
[348697103,1736723452201,-611.22,0.00010543,2]
[348697104,1736723452211,-500.0,0.00010543,2]
[348697105,1736723452220,-500.0,0.00010543,2]
[348697106,1736723452232,-900.07,0.00010543,2]
[348697107,1736723452242,-518.6,0.00010543,2]
[348697108,1736723452254,-500.0,0.00010543,2]
[348697109,1736723452269,-500.0,0.00010544,2]
[348697110,1736723452279,-558.53,0.00010544,2]
[348697111,1736723452289,-500.0,0.00010544,2]
[348697112,1736723452298,-500.0,0.00010545,2]
[348697113,1736723452307,-500.0,0.00010545,2]
[348697114,1736723452316,-500.0,0.00010545,2]
[348697115,1736723452325,-505.08,0.00010545,2]
[348697116,1736723452335,-504.01,0.00010545,2]
[348697117,1736723452345,-500.0,0.00010545,2]
[348697118,1736723452356,-500.0,0.00010545,2]
[348697119,1736723452367,-500.0,0.00010545,2]
[348697120,1736723452378,-500.0,0.00010545,2]
[348697121,1736723452388,-500.0,0.00010545,2]
[348697122,1736723452399,-500.0,0.00010545,2]
[348697123,1736723452410,-500.0,0.00010545,2]
[348697124,1736723452419,-511.77,0.00010545,2]
[348697125,1736723452429,-500.0,0.00010545,2]
[348697126,1736723452440,-500.0,0.00010545,2]
[348697127,1736723452449,-500.0,0.00010545,2]
[348697128,1736723452459,-500.0,0.00010545,2]
[348697129,1736723452468,-633.26,0.00010545,2]
[348697130,1736723452479,-500.0,0.00010545,2]
[348697131,1736723452489,-500.0,0.00010545,2]
[348697132,1736723452498,-500.0,0.00010545,2]
[348697133,1736723452507,-610.76,0.00010545,2]
[348697134,1736723452517,-500.0,0.00010545,2]
[348697135,1736723452528,-500.0,0.00010545,2]
[348697136,1736723452537,-500.0,0.00010545,2]
[348697137,1736723452547,-500.0,0.00010545,2]
[348697138,1736723452557,-500.0,0.00010545,2]
[348697139,1736723452567,-500.0,0.00010545,2]
[348697140,1736723452576,-500.0,0.00010545,2]
[348697141,1736723452586,-500.0,0.00010545,2]
[348697142,1736723452597,-500.0,0.00010545,2]
[348697143,1736723452607,-500.0,0.00010545,2]
[348697144,1736723452616,-500.0,0.00010545,2]
[348697145,1736723452625,-500.0,0.00010545,2]
[348697146,1736723452635,-506.77192852,0.00010545,2]
[348697147,1736723452645,-500.0,0.00010545,2]
[348697148,1736723452656,-535.42,0.00010545,2]
[348697149,1736723452665,-500.0,0.00010545,2]
[348697150,1736723452674,-525.03,0.00010545,2]
[348697151,1736723452683,-500.0,0.00010545,2]
[348697152,1736723452692,-500.0,0.00010545,2]
[348697153,1736723452701,-500.0,0.00010545,2]
[348697154,1736723452710,-500.0,0.00010545,2]
[348697155,1736723452720,-500.0,0.00010545,2]
[348697156,1736723452728,-500.0,0.00010545,2]
[348697157,1736723452738,-500.0,0.00010545,2]
[348697158,1736723452747,-500.0,0.00010545,2]
[348697159,1736723452756,-500.0,0.00010545,2]
[348697160,1736723452766,-879.51,0.00010545,2]
[348697161,1736723452775,-500.0,0.00010545,2]
[348697162,1736723452784,-220.70374364,0.00010545,2]
[348697163,1736723452793,-500.0,0.00010545,2]
[348697164,1736723452803,-500.0,0.00010545,2]
[348697165,1736723452811,-500.0,0.00010545,2]
[348697166,1736723452821,-500.0,0.00010545,2]
[348697167,1736723452830,-500.0,0.00010545,2]
[348697168,1736723452839,-511.24,0.00010545,2]
[348697169,1736723452848,-202.24468591,0.00010545,2]
[348697170,1736723452858,-500.0,0.00010545,2]
[348697171,1736723452867,-500.0,0.00010545,2]
[348697172,1736723452876,-500.0,0.00010545,2]
[348697173,1736723452885,-500.0,0.00010545,2]
[348697174,1736723452894,-500.0,0.00010545,2]
[348697175,1736723452905,-500.0,0.00010545,2]
[348697176,1736723452915,-500.0,0.00010545,2]
[348697177,1736723452926,-500.0,0.00010545,2]
[348697178,1736723452936,-500.0,0.00010545,2]
[348697179,1736723452945,-268.69627426,0.00010545,2]
[348697180,1736723452955,-500.0,0.00010545,2]
[348697181,1736723452964,-500.0,0.00010545,2]
[348697182,1736723452975,-500.0,0.00010545,2]
[348697183,1736723452986,-500.0,0.00010545,2]
[348697184,1736723452996,-545.84,0.00010545,2]
[348697185,1736723453007,-500.0,0.00010545,2]
[348697186,1736723453017,-500.0,0.00010545,2]
[348697187,1736723453027,-1161.39,0.00010545,2]
[348697188,1736723453036,-500.0,0.00010545,2]
[348697189,1736723453045,-500.0,0.00010545,2]
[348697190,1736723453055,-934.8,0.00010545,2]
[348697191,1736723453064,-500.0,0.00010545,2]
[348697192,1736723453073,-2739.92,0.00010545,2]
[348697193,1736723453082,-500.0,0.00010545,2]
[348697194,1736723453091,-1112.93,0.00010545,2]
[348697195,1736723453100,-500.0,0.00010545,2]
[348697196,1736723453109,-500.0,0.00010545,2]
[348697197,1736723453118,-500.0,0.00010545,2]
[348697198,1736723453127,-440.12296109,0.00010545,2]
[348697199,1736723453136,-500.0,0.00010545,2]
[348697200,1736723453146,-500.0,0.00010545,2]
[348697201,1736723453155,-500.0,0.00010545,2]
[348697202,1736723453163,-1961.1,0.00010545,2]
[348697203,1736723453173,-617.93,0.00010545,2]
[348697204,1736723453182,-500.0,0.00010545,2]
[348697205,1736723453191,-237.11856806,0.00010545,2]
[348697206,1736723453200,-539.12,0.00010545,2]
[348697207,1736723453209,-500.0,0.00010545,2]
[348697208,1736723453218,-516.61,0.00010545,2]
[348697209,1736723453227,-541.77,0.00010545,2]
[348697210,1736723453236,-563.6,0.00010545,2]
[348697211,1736723453245,-500.0,0.00010545,2]
[348697212,1736723453254,-1408.99,0.00010545,2]
[348697213,1736723453269,-881.31,0.00010545,2]
[348697214,1736723453279,-500.0,0.00010545,2]
[348697215,1736723453289,-500.0,0.00010545,2]
[348697216,1736723453299,-500.0,0.00010545,2]
[348697217,1736723453309,-500.0,0.00010545,2]
[348697218,1736723453320,-500.0,0.00010545,2]
[348697219,1736723453330,-1597.13,0.00010545,2]
[348697220,1736723453342,-500.0,0.00010545,2]
[348697221,1736723453352,-336.573048,0.00010545,2]
[348697222,1736723453362,-1968.91,0.00010545,2]
[348697223,1736723453372,-500.0,0.00010545,2]
[348697224,1736723453381,-500.0,0.00010545,2]
[348697225,1736723453390,-558.07,0.00010545,2]
[348697226,1736723453399,-1555.09,0.00010545,2]
[348697227,1736723453408,-500.0,0.00010545,2]
[348697228,1736723453417,-401.121639,0.00010545,2]
[348697229,1736723453427,-500.0,0.00010545,2]
[348697230,1736723453437,-500.0,0.00010545,2]
[348697231,1736723453446,-838.24,0.00010545,2]
[348697232,1736723453457,-500.0,0.00010545,2]
[348697233,1736723453467,-500.0,0.00010545,2]
[348697234,1736723453478,-500.0,0.00010545,2]
[348697235,1736723453488,-622.96,0.00010545,2]
[348697236,1736723453498,-500.0,0.00010545,2]
[348697237,1736723453509,-500.0,0.00010545,2]
[348697238,1736723453521,-500.0,0.00010545,2]
[348697239,1736723453531,-564.97,0.00010545,2]
[348697240,1736723453542,-500.0,0.00010545,2]
[348697241,1736723453551,-500.0,0.00010545,2]
[348697242,1736723453561,-500.0,0.00010545,2]
[348697243,1736723453570,-500.0,0.00010545,2]
[348697244,1736723453579,-500.0,0.00010545,2]
[348697245,1736723453588,-500.0,0.00010545,2]
[348697246,1736723453597,-500.0,0.00010545,2]
[348697247,1736723453607,-500.0,0.00010545,2]
[348697248,1736723453616,-500.0,0.00010545,2]
[348697249,1736723453625,-500.0,0.00010545,2]
[348697250,1736723453634,-500.0,0.00010545,2]
[348697251,1736723453643,-500.0,0.00010545,2]
[348697252,1736723453652,-500.0,0.00010545,2]
[348697253,1736723453663,-1949.57,0.00010545,2]
[348697254,1736723453672,-500.0,0.00010545,2]
[348697255,1736723453681,-762.22,0.00010545,2]
[348697256,1736723453690,-500.0,0.00010545,2]
[348697257,1736723453699,-1058.94,0.00010545,2]
[348697258,1736723453709,-500.0,0.00010545,2]
[348697259,1736723453718,-500.0,0.00010545,2]
[348697260,1736723453729,-500.0,0.00010546,2]
[348697261,1736723453739,-500.0,0.00010546,2]
[348697262,1736723453748,-500.0,0.00010546,2]
[348697263,1736723453757,-500.0,0.00010546,2]
[348697264,1736723453766,-500.0,0.00010546,2]
[348697265,1736723453776,-703.96,0.00010546,2]
[348697266,1736723453786,-264.68519224,0.00010546,2]
[348697267,1736723453795,-500.0,0.00010546,2]
[348697268,1736723453804,-500.0,0.00010546,2]
[348697269,1736723453813,-500.0,0.00010546,2]
[348697270,1736723453823,-1378.21,0.00010546,2]
[348697271,1736723453834,-500.0,0.00010546,2]
[348697272,1736723453844,-500.0,0.00010546,2]
[348697273,1736723453853,-500.0,0.00010546,2]
[348697274,1736723453863,-500.0,0.00010546,2]
[348697275,1736723453872,-877.97,0.00010546,2]
[348697276,1736723453882,-500.0,0.00010546,2]
[348697277,1736723453892,-2136.75,0.00010546,2]
[348697278,1736723453903,-500.0,0.00010546,2]
[348697279,1736723453914,-500.0,0.00010546,2]
[348697280,1736723453923,-500.0,0.00010546,2]
[348697281,1736723453933,-500.0,0.00010546,2]
[348697282,1736723453942,-500.0,0.00010546,2]
[348697283,1736723453952,-2251.52,0.00010546,2]
[348697284,1736723453961,-500.0,0.00010546,2]
[348697285,1736723453970,-500.0,0.00010546,2]
[348697286,1736723453980,-500.0,0.00010546,2]
[348697287,1736723453989,-500.0,0.00010546,2]
[348697288,1736723453999,-537.32981676,0.00010546,2]
[348697289,1736723454008,-500.0,0.00010546,2]
[348697290,1736723454017,-519.41,0.00010546,2]
[348697291,1736723454026,-923.65,0.00010546,2]
[348697292,1736723454035,-500.0,0.00010546,2]
[348697293,1736723454044,-505.28,0.00010546,2]
[348697294,1736723454053,-1889.32,0.00010546,2]
[348697295,1736723454063,-500.0,0.00010546,2]
[348697296,1736723454072,-500.0,0.00010546,2]
[348697297,1736723454081,-500.0,0.00010546,2]
[348697298,1736723454091,-500.0,0.00010546,2]
[348697299,1736723454100,-500.0,0.00010546,2]
[348697300,1736723454109,-500.34,0.00010546,2]
[348697301,1736723454167,-500.0,0.00010546,2]
[348697302,1736723454176,-500.0,0.00010546,2]
[348697303,1736723454185,-500.0,0.00010546,2]
[348697304,1736723454194,-500.0,0.00010546,2]
[348697305,1736723454203,-519.67,0.00010546,2]
[348697306,1736723454211,-500.0,0.00010546,2]
[348697307,1736723454221,-500.0,0.00010546,2]
[348697308,1736723454230,-525.16226411,0.00010546,2]
[348697309,1736723454239,-592.28,0.00010546,2]
[348697310,1736723454248,-500.0,0.00010546,2]
[348697311,1736723454258,-500.0,0.00010546,2]
[348697312,1736723454269,-898.78,0.00010546,2]
[348697313,1736723454278,-500.0,0.00010546,2]
[348697314,1736723454287,-500.0,0.00010546,2]
[348697315,1736723454297,-766.07,0.00010546,2]
[348697316,1736723454306,-500.0,0.00010546,2]
[348697317,1736723454315,-561.49,0.00010546,2]
[348697318,1736723454324,-2194.42,0.00010546,2]
[348697319,1736723454333,-901.07,0.00010546,2]
[348697320,1736723454343,-952.21,0.00010546,2]
[348697321,1736723454352,-1139.11,0.00010546,2]
[348697322,1736723454361,-1451.1,0.00010546,2]
[348697323,1736723454370,-896.25,0.00010546,2]
[348697324,1736723454379,-1582.85,0.00010546,2]
[348697325,1736723454388,-500.0,0.00010547,2]
[348697326,1736723454397,-875.87,0.00010547,2]
[348697327,1736723454405,-681.14,0.00010547,2]
[348697328,1736723454414,-946.98,0.00010547,2]
[348697329,1736723454423,-775.55,0.00010547,2]
[348697330,1736723454433,-500.0,0.00010547,2]
[348697331,1736723454442,-854.16,0.00010547,2]
[348697332,1736723454451,-1050.58,0.00010547,2]
[348697333,1736723454460,-745.7,0.00010547,2]
[348697334,1736723454468,-500.0,0.00010547,2]
[348697335,1736723454477,-1989.55281722,0.00010547,2]
[348697336,1736723454486,-187869.58344002,0.00010547,2]
[348697337,1736723454496,-2452.67248919,0.00010632,2]
[348697338,1736723454506,-150.0,0.00010658,2]
[348697339,1736723454515,-150.0,0.00010658,2]
[348697340,1736723454523,-368.66217887,0.00010667,2]
[348697341,1736723454532,-1021.81,0.000107,2]
[348697342,1736723454542,-300.46,0.00010711,2]
[348697343,1736723454551,-3000.0,0.0001075,2]
[348697344,1736723454560,-500.0,0.00010817,2]
[348697345,1736723454568,-1301.35,0.00010817,2]
[348697346,1736723454578,-1287.05,0.00010817,2]
[348697347,1736723454587,-956.33,0.00010817,2]
[348697348,1736723454595,-565.65,0.00010817,2]
[348697349,1736723454604,-1471.68,0.00010817,2]
[348697350,1736723454614,-500.0,0.00010817,2]
[348697351,1736723454624,-597.96,0.00010817,2]
[348697352,1736723454635,-611.22,0.00010817,2]
[348697353,1736723454645,-352.67435705,0.00010817,2]
[348697354,1736723454654,-500.0,0.00010817,2]
[348697355,1736723454664,-900.07,0.00010817,2]
[348697356,1736723454673,-518.6,0.00010817,2]
[348697357,1736723454682,-500.0,0.00010817,2]
[348697358,1736723454692,-558.53,0.00010818,2]
[348697359,1736723454701,-500.0,0.00010818,2]
[348697360,1736723454710,-504.01,0.00010819,2]
[348697361,1736723454719,-500.0,0.00010819,2]
[348697362,1736723454728,-500.0,0.00010819,2]
[348697363,1736723454737,-500.0,0.00010819,2]
[348697364,1736723454746,-500.0,0.00010819,2]
[348697365,1736723454756,-500.0,0.00010819,2]
[348697366,1736723454765,-194.35736989,0.00010819,2]
[348697367,1736723454774,-500.0,0.00010819,2]
[348697368,1736723454783,-500.0,0.00010819,2]
[348697369,1736723454793,-500.0,0.00010819,2]
[348697370,1736723454802,-420.76662732,0.00010819,2]
[348697371,1736723454812,-552.26890889,0.00010819,2]
[348697372,1736723454821,-500.0,0.00010819,2]
[348697373,1736723454832,-500.0,0.00010819,2]
[348697374,1736723454841,-500.0,0.00010819,2]
[348697375,1736723454851,-162.32600937,0.00010819,2]
[348697376,1736723454860,-500.0,0.00010819,2]
[348697377,1736723454870,-500.0,0.00010819,2]
[348697378,1736723454880,-535.42,0.00010819,2]
[348697379,1736723454889,-500.0,0.00010819,2]
[348697380,1736723454898,-525.03,0.00010819,2]
[348697381,1736723454909,-500.0,0.00010819,2]
[348697382,1736723454918,-500.0,0.00010819,2]
[348697383,1736723454927,-338.64922327,0.00010819,2]
[348697384,1736723454936,-500.0,0.00010819,2]
[348697385,1736723454946,-500.0,0.00010819,2]
[348697386,1736723454955,-500.0,0.00010819,2]
[348697387,1736723454963,-500.0,0.00010819,2]
[348697388,1736723454974,-500.0,0.00010819,2]
[348697389,1736723454984,-500.0,0.00010819,2]
[348697390,1736723454995,-879.51,0.00010819,2]
[348697391,1736723455006,-500.0,0.00010819,2]
[348697392,1736723455016,-500.0,0.00010819,2]
[348697393,1736723455026,-500.0,0.00010819,2]
[348697394,1736723455035,-500.0,0.00010819,2]
[348697395,1736723455044,-500.0,0.00010819,2]
[348697396,1736723455053,-511.24,0.00010819,2]
[348697397,1736723455063,-500.0,0.00010819,2]
[348697398,1736723455073,-500.0,0.00010819,2]
[348697399,1736723455082,-500.0,0.00010819,2]
[348697400,1736723455092,-500.0,0.00010819,2]
[348697401,1736723455101,-500.0,0.00010819,2]
[348697402,1736723455111,-500.0,0.00010819,2]
[348697403,1736723455123,-500.0,0.00010819,2]
[348697404,1736723455133,-500.0,0.00010819,2]
[348697405,1736723455142,-500.0,0.00010819,2]
[348697406,1736723455150,-500.0,0.00010819,2]
[348697407,1736723455159,-500.0,0.00010819,2]
[348697408,1736723455168,-545.84,0.00010819,2]
[348697409,1736723455178,-500.0,0.00010819,2]
[348697410,1736723455187,-497.69047651,0.00010819,2]
[348697411,1736723455196,-1161.39,0.00010819,2]
[348697412,1736723455205,-500.0,0.00010819,2]
[348697413,1736723455215,-500.0,0.00010819,2]
[348697414,1736723455224,-934.8,0.00010819,2]
[348697415,1736723455234,-500.0,0.00010819,2]
[348697416,1736723455243,-2739.92,0.00010819,2]
[348697417,1736723455252,-500.0,0.00010819,2]
[348697418,1736723455265,-1112.93,0.00010819,2]
[348697419,1736723455275,-500.0,0.00010819,2]
[348697420,1736723455284,-500.0,0.00010819,2]
[348697421,1736723455293,-500.0,0.00010819,2]
[348697422,1736723455302,-500.0,0.00010819,2]
[348697423,1736723455311,-500.0,0.00010819,2]
[348697424,1736723455321,-1961.1,0.00010819,2]
[348697425,1736723455329,-500.0,0.00010819,2]
[348697426,1736723455338,-617.93,0.00010819,2]
[348697427,1736723455347,-539.12,0.00010819,2]
[348697428,1736723455356,-500.0,0.00010819,2]
[348697429,1736723455367,-516.61,0.00010819,2]
[348697430,1736723455376,-541.77,0.00010819,2]
[348697431,1736723455384,-563.6,0.00010819,2]
[348697432,1736723455394,-500.0,0.00010819,2]
[348697433,1736723455402,-1408.99,0.00010819,2]
[348697434,1736723455411,-881.31,0.00010819,2]
[348697435,1736723455420,-500.0,0.00010819,2]
[348697436,1736723455429,-500.0,0.00010819,2]
[348697437,1736723455438,-500.0,0.00010819,2]
[348697438,1736723455448,-500.0,0.00010819,2]
[348697439,1736723455456,-500.0,0.00010819,2]
[348697440,1736723455466,-1597.13,0.00010819,2]
[348697441,1736723455475,-500.0,0.00010819,2]
[348697442,1736723455485,-336.573048,0.00010819,2]
[348697443,1736723455494,-1968.91,0.00010819,2]
[348697444,1736723455503,-500.0,0.00010819,2]
[348697445,1736723455513,-500.0,0.00010819,2]
[348697446,1736723455523,-558.07,0.00010819,2]
[348697447,1736723455533,-1555.09,0.00010819,2]
[348697448,1736723455543,-500.0,0.00010819,2]
[348697449,1736723455553,-401.121639,0.00010819,2]
[348697450,1736723455562,-500.0,0.00010819,2]
[348697451,1736723455573,-500.0,0.00010819,2]
[348697452,1736723455583,-838.24,0.00010819,2]
[348697453,1736723455591,-500.0,0.00010819,2]
[348697454,1736723455602,-500.0,0.00010819,2]
[348697455,1736723455612,-500.0,0.00010819,2]
[348697456,1736723455622,-622.96,0.00010819,2]
[348697457,1736723455631,-500.0,0.00010819,2]
[348697458,1736723455640,-500.0,0.00010819,2]
[348697459,1736723455649,-500.0,0.00010819,2]
[348697460,1736723455658,-564.97,0.00010819,2]